bitfinex-derivatives/quotes_ETHF0:USTF0_20260116
["timestamp","ask_amount","ask_price","bid_price","bid_amount"]
[1768602498079,0.00316522,3293.0,3292.0,0.00282836]
[1768602498379,0.94330309,3292.9,3292.0,0.00282836]
[1768602498565,0.00316522,3293.0,3292.0,0.00282836]
[1768602498762,0.94330496,3292.9,3292.0,0.00282836]
[1768602498977,0.00316522,3293.0,3292.0,0.00282836]
[1768602499178,0.94328976,3292.9,3292.0,0.00282836]
[1768602499380,0.00316522,3293.0,3292.0,0.00282836]
[1768602499679,0.94332548,3292.9,3292.0,0.00282836]
[1768602499878,0.00316522,3293.0,3292.0,0.00282836]
[1768602500180,0.94332535,3292.9,3292.0,0.00282836]
[1768602500368,0.00316522,3293.0,3292.0,0.00282836]
[1768602500668,0.9432782,3292.9,3292.0,0.00282836]
[1768602500967,0.00316522,3293.0,3292.0,0.00282836]
[1768602501168,0.94327826,3292.9,3292.0,0.00282836]
[1768602501468,0.00316522,3293.0,3292.0,0.00282836]
[1768602501769,0.94326176,3292.9,3292.0,0.00282836]
[1768602502066,0.00316522,3293.0,3292.0,0.00282836]
[1768602502361,0.94325633,3292.9,3292.0,0.00282836]
[1768602502563,0.00316522,3293.0,3292.0,0.00282836]
[1768602502780,0.94327136,3292.9,3292.0,0.00282836]
[1768602503074,0.00316522,3293.0,3292.0,0.00282836]
[1768602503276,0.9432703,3292.9,3292.0,0.00282836]
[1768602503577,0.00316522,3293.0,3292.0,0.00282836]
[1768602503879,0.94328936,3292.9,3292.0,0.00282836]
[1768602504079,0.00316522,3293.0,3292.0,0.00282836]
[1768602504267,0.94328838,3292.9,3292.0,0.00282836]
[1768602504468,0.00316522,3293.0,3292.0,0.00282836]
[1768602504779,0.9432926,3292.9,3292.0,0.00282836]
[1768602504980,0.00316522,3293.0,3292.0,0.00282836]
[1768602505182,0.94329253,3292.9,3292.0,0.00282836]
[1768602505482,0.00316522,3293.0,3292.0,0.00282836]
[1768602505682,0.94329852,3292.9,3292.0,0.00282836]
[1768602505871,0.00316522,3293.0,3292.0,0.00282836]
[1768602506075,0.94329805,3292.9,3292.0,0.00282836]
[1768602506379,0.00316522,3293.0,3292.0,0.00282836]
[1768602506564,0.94319662,3292.9,3292.0,0.00282836]
[1768602506768,0.00316522,3293.0,3292.0,0.00282836]
[1768602506972,0.94384748,3292.9,3292.0,0.00282836]
[1768602507172,0.00316522,3293.0,3292.0,0.00282836]
[1768602507379,0.94385149,3292.9,3292.0,0.00282836]
[1768602507678,0.00316522,3293.0,3292.0,0.00282836]
[1768602507878,0.94386016,3292.9,3292.0,0.00282836]
[1768602508080,0.00316522,3293.0,3292.0,0.00282836]
[1768602508378,0.94386015,3292.9,3292.0,0.00282836]
[1768602508684,0.00316522,3293.0,3292.0,0.00282836]
[1768602508685,2.69895843,3293.0,3292.0,0.00282836]
[1768602508978,0.94386156,3292.9,3292.0,0.00282836]
[1768602509179,2.69895843,3293.0,3292.0,0.00282836]
[1768602509375,0.94386188,3292.9,3292.0,0.00282836]
[1768602509576,2.69895843,3293.0,3292.0,0.00282836]
[1768602509779,0.94386204,3292.9,3292.0,0.00282836]
[1768602510079,2.69895843,3293.0,3292.0,0.00282836]
[1768602510278,3.68985857,3292.9,3292.0,0.00282836]
[1768602510484,2.74599533,3292.9,3292.0,0.00282836]
[1768602515083,3.68963801,3292.8,3291.6,0.15196]
[1768602515283,2.74599533,3292.8,3291.6,0.15196]
[1768602515984,2.74599533,3292.8,3291.6,0.15454473]
[1768602516287,2.74599533,3292.8,3291.6,0.00258473]
[1768602516475,3.68948384,3292.7,3291.6,0.00258473]
[1768602516674,2.74599533,3292.7,3291.6,0.00258473]
[1768602543319,0.94366138,3292.6,3291.6,0.00258473]
[1768602543527,0.00316522,3293.0,3291.6,0.00258473]
[1768602543825,0.94366468,3292.9,3291.6,2.91117169]
[1768602544125,0.94366468,3292.8,3291.6,2.91117169]
[1768602544325,0.94366468,3292.7,3291.6,2.91117169]
[1768602544523,0.00316522,3293.0,3291.6,2.91117169]
[1768602544823,0.94379184,3292.9,3291.6,2.91117169]
[1768602545127,0.94379184,3292.8,3291.6,2.91117169]
[1768602545313,0.94379184,3292.7,3291.6,2.91117169]
[1768602545519,0.00316522,3293.0,3291.6,2.91117169]
[1768602545826,0.94388873,3292.9,3291.6,2.91117169]
[1768602546022,0.94388873,3292.8,3291.6,2.91117169]
[1768602546224,0.94388873,3292.7,3291.6,2.91117169]
[1768602546426,0.00316522,3293.0,3291.6,2.91117169]
[1768602546723,0.94399302,3292.9,3291.6,2.91117169]
[1768602546924,0.94399302,3292.8,3291.6,2.91117169]
[1768602547124,0.94399302,3292.7,3291.6,2.91117169]
[1768602547325,0.00316522,3293.0,3291.6,2.91117169]
[1768602547525,0.94400177,3292.9,3291.6,2.91117169]
[1768602547726,0.94400177,3292.8,3291.6,2.91117169]
[1768602548025,0.94400177,3292.7,3291.6,2.91117169]
[1768602548324,0.00316522,3293.0,3291.6,2.91117169]
[1768602548525,0.94401036,3292.9,3291.6,2.91117169]
[1768602548725,0.94401036,3292.8,3291.6,2.91117169]
[1768602549026,0.94401036,3292.7,3291.6,2.91117169]
[1768602549219,0.00316522,3293.0,3291.6,2.91117169]
[1768602549418,0.98511171,3292.8,3291.6,2.91117169]
[1768602549624,0.94401103,3292.7,3291.6,2.91117169]
[1768602551528,0.98511171,3292.6,3291.6,0.00258473]
[1768602560534,3.6895548,3292.6,3291.6,0.00258473]
[1768602577646,3.6895548,3292.6,3290.6,3.039]
[1768602577647,0.98511171,3291.9,3290.5,0.15201]
[1768602578648,0.98511171,3291.9,3290.5,0.15475216]
[1768602579338,0.98511171,3291.9,3290.6,0.98511171]
[1768602585859,3.82926507,3292.1,3290.6,0.98511171]
[1768602586654,2.84415336,3292.0,3290.6,0.98511171]
[1768602587863,2.84415336,3292.0,3290.5,0.15475216]
[1768602588157,2.84415336,3291.1,3289.4,2.78508638]
[1768602588457,3.82926507,3291.5,3290.1,0.98511171]
[1768602588659,0.94075494,3291.4,3289.7,2.78508638]
[1768602588859,2.84415336,3291.3,3289.7,3.77019809]
[1768602589044,3.82926507,3291.3,3289.7,2.7873832]
[1768602589250,2.84415336,3291.2,3289.7,2.7873832]
[1768602589461,2.84415336,3291.2,3289.8,0.98511171]
[1768602590347,0.98511171,3291.1,3289.8,0.98511171]
[1768602594161,2.81831343,3291.0,3288.5,3.042]
[1768602594358,2.97031343,3290.9,3288.8,2.91684066]
[1768602594559,0.152,3290.9,3289.3,3.90195237]
[1768602594758,0.152,3290.9,3289.6,0.98511171]
[1768602594958,3.95542514,3290.9,3289.5,0.98511171]
[1768602595154,3.95542514,3290.9,3289.5,0.9886623]
[1768602596264,3.95542514,3290.9,3289.5,0.00355059]
[1768602600859,2.97031343,3290.8,3288.6,0.1521]
[1768602601172,2.81831343,3290.4,3289.0,0.98511171]
[1768602601360,0.98511171,3290.0,3288.6,0.98511171]
[1768602601667,0.98511171,3289.8,3288.4,0.98511171]
[1768602601856,0.98511171,3289.6,3288.4,0.00261693]
[1768602602058,0.98511171,3289.4,3288.4,0.00261693]
[1768602602259,0.98511171,3289.0,3288.4,0.00261693]
[1768602602460,0.98511171,3289.0,3287.5,0.98511171]
[1768602602665,0.98511171,3289.0,3287.7,0.98511171]
[1768602602867,2.81831343,3289.1,3287.7,0.98511171]
[1768602603464,0.98511171,3289.0,3287.7,0.00286677]
[1768602604169,0.98511171,3289.0,3287.7,0.98797848]
[1768602604956,2.81831343,3289.1,3287.9,0.98511171]
[1768602605568,2.81831343,3289.1,3287.7,0.98797848]
[1768602606768,2.81831343,3289.1,3287.9,0.98511171]
[1768602607370,0.98511171,3289.2,3287.9,0.98511171]
[1768602608473,0.98511171,3289.2,3287.7,0.00286677]
[1768602608670,0.98511171,3289.2,3287.8,0.98511171]
[1768602608975,0.98511171,3288.6,3287.7,0.00286677]
[1768602609171,0.98511171,3288.8,3287.7,0.00286677]
[1768602609376,2.81831343,3289.0,3287.7,0.00286677]
[1768602610075,2.81831343,3289.4,3287.7,0.00286677]
[1768602610271,4.51431343,3289.4,3287.7,2.91970743]
[1768602614383,0.15206,3289.6,3287.7,2.91970743]
[1768602614576,2.63640941,3289.5,3287.7,2.91970743]
[1768602614776,1.696,3289.5,3287.7,2.91970743]
[1768602615479,0.94085364,3289.4,3287.7,2.91970743]
[1768602615677,0.15206,3289.6,3287.8,2.91684066]
[1768602615870,0.94088926,3289.5,3287.8,2.91684066]
[1768602616066,0.15206,3289.6,3287.8,2.91684066]
[1768602617178,0.00299648,3289.8,3287.8,2.91684066]
[1768602617478,0.00299648,3289.8,3288.2,2.91684066]
[1768602618578,0.00299648,3289.8,3288.4,2.91684066]
[1768602618779,0.00299648,3289.8,3288.6,2.91684066]
[1768602618981,3.19401,3290.7,3289.0,2.91684066]
[1768602618982,3.042,3290.7,3289.0,2.91684066]
[1768602619180,3.80580151,3291.0,3289.0,2.91684066]
[1768602619383,0.94347117,3290.9,3289.0,2.91684066]
[1768602619685,0.94347117,3290.8,3289.0,2.91684066]
[1768602619874,1.696,3291.1,3289.0,2.91684066]
[1768602620072,0.94348853,3291.0,3289.0,2.91684066]
[1768602620274,0.94348853,3290.9,3289.0,2.91684066]
[1768602620474,0.94348853,3290.8,3289.0,2.91684066]
[1768602620684,0.00378189,3291.1,3289.0,2.91684066]
[1768602620987,0.94376738,3291.0,3289.0,2.91684066]
[1768602621180,0.94376738,3290.9,3289.0,2.91684066]
[1768602621379,0.94376738,3290.8,3289.0,2.91684066]
[1768602621588,0.00378189,3291.1,3289.0,2.91684066]
[1768602621885,0.94406044,3291.0,3289.0,2.91684066]
[1768602622185,0.94406044,3290.9,3289.0,2.91684066]
[1768602622380,0.94406044,3290.8,3289.0,2.91684066]
[1768602622581,0.94406044,3290.7,3289.0,2.91684066]
[1768602622786,0.00378189,3291.1,3289.0,2.91684066]
[1768602622984,3.77498165,3291.0,3289.0,2.91684066]
[1768602623185,0.94437186,3290.9,3289.0,2.91684066]
[1768602638091,0.94437186,3290.9,3289.0,3.06892066]
[1768602643500,0.94437186,3290.9,3289.4,2.70756935]
[1768602645801,0.94825293,3290.8,3289.4,2.70756935]
[1768602645999,0.15199,3291.0,3289.4,2.70756935]
[1768602646304,0.94908821,3290.9,3289.4,2.70756935]
[1768602646496,0.94908821,3290.8,3289.4,2.70756935]
[1768602646694,0.15199,3291.0,3289.4,2.70756935]
[1768602646892,0.94910189,3290.9,3289.4,2.70756935]
[1768602647098,0.94910189,3290.8,3289.4,2.70756935]
[1768602647297,0.94910189,3290.7,3289.4,2.70756935]
[1768602647596,0.15199,3291.0,3289.4,2.70756935]
[1768602647795,0.94979434,3290.9,3289.4,2.70756935]
[1768602647996,0.94979434,3290.8,3289.4,2.70756935]
[1768602648196,0.94979434,3290.7,3289.4,2.70756935]
[1768602648404,0.94979434,3290.6,3289.4,2.70756935]
[1768602648605,0.15199,3291.0,3289.4,2.70756935]
[1768602648795,0.95048227,3290.9,3289.4,2.70756935]
[1768602648995,0.95048227,3290.8,3289.4,2.70756935]
[1768602649195,0.95048227,3290.7,3289.4,2.70756935]
[1768602649396,0.95048227,3290.6,3289.4,2.70756935]
[1768602649604,0.15199,3291.0,3289.4,2.70756935]
[1768602649804,0.95060303,3290.9,3289.4,2.70756935]
[1768602650004,0.95060303,3290.8,3289.4,2.70756935]
[1768602650204,0.95060303,3290.7,3289.4,2.70756935]
[1768602650504,0.15199,3291.0,3289.4,2.70756935]
[1768602650702,0.95054753,3290.9,3289.4,2.70756935]
[1768602650903,0.95054753,3290.8,3289.4,2.70756935]
[1768602651104,0.95054753,3290.7,3289.4,2.70756935]
[1768602651391,0.15199,3291.0,3289.4,2.70756935]
[1768602651591,0.95049872,3290.9,3289.4,2.70756935]
[1768602651800,0.95049872,3290.8,3289.4,2.70756935]
[1768602651993,0.95049872,3290.7,3289.4,2.70756935]
[1768602652198,0.15199,3291.0,3289.4,2.70756935]
[1768602652397,0.95045783,3290.9,3289.4,2.70756935]
[1768602652597,0.95045783,3290.8,3289.4,2.70756935]
[1768602652807,0.95045783,3290.7,3289.4,2.70756935]
[1768602653008,0.15199,3291.0,3289.4,2.70756935]
[1768602653306,0.95045783,3290.9,3289.4,2.70756935]
[1768602653503,0.95045783,3290.8,3289.4,2.70756935]
[1768602653705,0.95045783,3290.7,3289.4,2.70756935]
[1768602653905,0.15199,3291.0,3289.4,2.70756935]
[1768602654105,0.9504262,3290.9,3289.4,2.70756935]
[1768602654310,0.9504262,3290.8,3289.4,2.70756935]
[1768602654605,0.9504262,3290.7,3289.4,2.70756935]
[1768602654808,0.15199,3291.0,3289.4,2.70756935]
[1768602655006,0.95040191,3290.9,3289.4,2.70756935]
[1768602655207,0.95040191,3290.8,3289.4,2.70756935]
[1768602655408,0.95040191,3290.7,3289.4,2.70756935]
[1768602655608,0.15199,3291.0,3289.4,2.70756935]
[1768602655809,0.95038657,3290.9,3289.4,2.70756935]
[1768602656009,0.95038657,3290.8,3289.4,2.70756935]
[1768602656209,0.95038657,3290.7,3289.4,2.70756935]
[1768602656413,0.15199,3291.0,3289.4,2.70756935]
[1768602656613,0.95037543,3290.9,3289.4,2.70756935]
[1768602656912,0.95037543,3290.8,3289.4,2.70756935]
[1768602657101,0.95037543,3290.7,3289.4,2.70756935]
[1768602657303,0.15199,3291.0,3289.4,2.70756935]
[1768602657512,0.94987229,3290.9,3289.4,2.70756935]
[1768602657713,0.94987229,3290.8,3289.4,2.70756935]
[1768602657907,0.94987229,3290.7,3289.4,2.70756935]
[1768602658113,0.15199,3291.0,3289.4,2.70756935]
[1768602658319,0.94987229,3290.9,3289.4,2.70756935]
[1768602658611,0.94987229,3290.8,3289.4,2.70756935]
[1768602658811,0.15199,3291.0,3289.4,2.70756935]
[1768602658812,0.94987229,3290.7,3289.4,2.70756935]
[1768602659013,0.15199,3291.0,3289.4,2.70756935]
[1768602659210,0.94993191,3290.9,3289.4,2.70756935]
[1768602659405,0.94993191,3290.8,3289.4,2.70756935]
[1768602659606,0.94993191,3290.7,3289.4,2.70756935]
[1768602659908,0.15199,3291.0,3289.4,2.70756935]
[1768602660207,0.94993016,3290.9,3289.4,2.70756935]
[1768602660409,0.94993016,3290.8,3289.4,2.70756935]
[1768602660604,0.94993016,3290.7,3289.4,2.70756935]
[1768602660904,0.15199,3291.0,3289.4,2.70756935]
[1768602661100,0.9499401,3290.9,3289.4,2.70756935]
[1768602661312,0.9499401,3290.8,3289.4,2.70756935]
[1768602661513,0.9499401,3290.7,3289.4,2.70756935]
[1768602661714,0.15199,3291.0,3289.4,2.70756935]
[1768602661910,0.94995613,3290.9,3289.4,2.70756935]
[1768602662210,0.94995613,3290.8,3289.4,2.70756935]
[1768602662411,0.94995613,3290.7,3289.4,2.70756935]
[1768602662612,0.15199,3291.0,3289.4,2.70756935]
[1768602662813,0.94997647,3290.9,3289.4,2.70756935]
[1768602663007,0.94997647,3290.8,3289.4,2.70756935]
[1768602663206,0.94997647,3290.7,3289.4,2.70756935]
[1768602663407,0.15199,3291.0,3289.4,2.70756935]
[1768602663609,0.95000829,3290.9,3289.4,2.70756935]
[1768602663809,0.95000829,3290.8,3289.4,2.70756935]
[1768602664009,0.95000829,3290.7,3289.4,2.70756935]
[1768602664211,0.15199,3291.0,3289.4,2.70756935]
[1768602664411,0.95004664,3290.9,3289.4,2.70756935]
[1768602664619,0.95004664,3290.8,3289.4,2.70756935]
[1768602664824,0.95004664,3290.7,3289.4,2.70756935]
[1768602665119,0.15199,3291.0,3289.4,2.70756935]
[1768602665308,0.95009327,3290.9,3289.4,2.70756935]
[1768602665506,0.95009327,3290.8,3289.4,2.70756935]
[1768602665714,0.95009327,3290.7,3289.4,2.70756935]
[1768602666008,0.15199,3291.0,3289.4,2.70756935]
[1768602666210,0.95015183,3290.9,3289.4,2.70756935]
[1768602666414,0.95015183,3290.8,3289.4,2.70756935]
[1768602666616,0.95015183,3290.7,3289.4,2.70756935]
[1768602666816,0.15199,3291.0,3289.4,2.70756935]
[1768602667115,0.95015183,3290.9,3289.4,2.70756935]
[1768602667316,0.95015183,3290.8,3289.4,2.70756935]
[1768602667516,0.95015183,3290.7,3289.4,2.70756935]
[1768602667717,0.15199,3291.0,3289.4,2.70756935]
[1768602667918,0.95024188,3290.9,3289.4,2.70756935]
[1768602668216,0.95024188,3290.8,3289.4,2.70756935]
[1768602668417,0.95024188,3290.7,3289.4,2.70756935]
[1768602668616,0.15199,3291.0,3289.4,2.70756935]
[1768602668822,0.95029802,3290.9,3289.4,2.70756935]
[1768602669025,0.95029802,3290.8,3289.4,2.70756935]
[1768602669225,0.95029802,3290.7,3289.4,2.70756935]
[1768602669525,1.13823685,3291.0,3289.5,3.83537307]
[1768602669717,0.95036053,3290.9,3289.6,2.84912622]
[1768602670021,0.95036053,3290.8,3289.6,2.84912622]
[1768602670326,0.95036053,3290.7,3289.6,2.84912622]
[1768602670622,1.13823685,3291.0,3289.6,2.84912622]
[1768602670814,0.9504356,3290.9,3289.6,2.84912622]
[1768602671019,0.9504356,3290.8,3289.6,2.84912622]
[1768602671218,1.13823685,3291.0,3289.6,2.84912622]
[1768602671219,0.9504356,3290.7,3289.6,2.84912622]
[1768602671424,0.9504356,3290.6,3289.6,2.84912622]
[1768602671621,1.13823685,3291.0,3289.6,2.84912622]
[1768602671820,0.95054758,3290.9,3289.6,2.84912622]
[1768602672022,0.95054758,3290.8,3289.6,2.84912622]
[1768602672319,0.95054758,3290.7,3289.6,2.84912622]
[1768602672525,0.95054758,3290.6,3289.6,2.84912622]
[1768602672824,1.13823685,3291.0,3289.6,2.84912622]
[1768602673014,0.95088073,3290.9,3289.6,2.84912622]
[1768602673219,0.95088073,3290.8,3289.6,2.84912622]
[1768602673424,0.95088073,3290.7,3289.6,2.84912622]
[1768602673719,0.95088073,3290.6,3289.6,2.84912622]
[1768602673923,1.13823685,3291.0,3289.6,2.84912622]
[1768602674127,0.95113115,3290.9,3289.6,2.84912622]
[1768602674325,0.95113115,3290.8,3289.6,2.84912622]
[1768602674528,0.95113115,3290.7,3289.6,2.84912622]
[1768602674722,0.95113115,3290.6,3289.6,2.84912622]
[1768602674923,1.13823685,3291.0,3289.6,2.84912622]
[1768602675123,0.95115375,3290.9,3289.6,2.84912622]
[1768602675329,0.95115375,3290.8,3289.6,2.84912622]
[1768602675528,0.95115375,3290.7,3289.6,2.84912622]
[1768602675726,0.95115375,3290.6,3289.6,2.84912622]
[1768602675927,1.13823685,3291.0,3289.6,2.84912622]
[1768602676126,0.95119516,3290.9,3289.6,2.84912622]
[1768602676315,0.95119516,3290.8,3289.6,2.84912622]
[1768602676519,0.95119516,3290.7,3289.6,2.84912622]
[1768602676719,0.95119516,3290.6,3289.6,2.84912622]
[1768602676920,1.13823685,3291.0,3289.6,2.84912622]
[1768602677119,0.95123332,3290.9,3289.6,2.84912622]
[1768602677320,0.95123332,3290.8,3289.6,2.84912622]
[1768602677618,0.95123332,3290.7,3289.6,2.84912622]
[1768602677814,0.95123332,3290.6,3289.6,2.84912622]
[1768602678020,1.13823685,3291.0,3289.6,2.84912622]
[1768602678230,0.95123734,3290.9,3289.6,2.84912622]
[1768602678430,0.95123734,3290.8,3289.6,2.84912622]
[1768602678620,0.95123734,3290.7,3289.6,2.84912622]
[1768602678917,0.95123734,3290.6,3289.6,2.84912622]
[1768602679119,1.13823685,3291.0,3289.6,2.84912622]
[1768602679419,0.95124237,3290.9,3289.6,2.84912622]
[1768602679618,0.95124237,3290.8,3289.6,2.84912622]
[1768602679814,0.95124237,3290.7,3289.6,2.84912622]
[1768602680014,0.95124237,3290.6,3289.6,2.84912622]
[1768602680228,1.13823685,3291.0,3289.6,2.84912622]
[1768602680428,0.95124171,3290.9,3289.6,2.84912622]
[1768602680631,0.95124171,3290.8,3289.6,2.84912622]
[1768602680830,0.95124171,3290.7,3289.6,2.84912622]
[1768602681029,0.95124171,3290.6,3289.6,2.84912622]
[1768602681227,1.13823685,3291.0,3289.6,2.84912622]
[1768602681428,0.95124347,3290.9,3289.6,2.84912622]
[1768602681728,0.95124347,3290.8,3289.6,2.84912622]
[1768602681927,0.95124347,3290.7,3289.6,2.84912622]
[1768602682128,0.95124347,3290.6,3289.6,2.84912622]
[1768602682328,1.13823685,3291.0,3289.6,2.84912622]
[1768602682527,0.95124368,3290.9,3289.6,2.84912622]
[1768602682731,0.95124368,3290.8,3289.6,2.84912622]
[1768602683027,1.13823685,3291.0,3289.6,2.84912622]
[1768602683028,0.95124368,3290.7,3289.6,2.84912622]
[1768602683230,0.95124368,3290.6,3289.6,2.84912622]
[1768602683430,1.13823685,3291.0,3289.6,2.84912622]
[1768602683631,0.9512427,3290.9,3289.6,2.84912622]
[1768602683847,0.9512427,3290.8,3289.6,2.84912622]
[1768602684131,0.9512427,3290.7,3289.6,2.84912622]
[1768602684335,0.9512427,3290.6,3289.6,2.84912622]
[1768602684529,1.13823685,3291.0,3289.6,2.84912622]
[1768602684730,0.95124192,3290.9,3289.6,2.84912622]
[1768602684928,0.95124192,3290.8,3289.6,2.84912622]
[1768602685129,0.95124192,3290.7,3289.6,2.84912622]
[1768602685330,0.95124192,3290.6,3289.6,2.84912622]
[1768602685532,1.13823685,3291.0,3289.6,2.84912622]
[1768602685729,0.95124113,3290.9,3289.6,2.84912622]
[1768602685924,0.95124113,3290.8,3289.6,2.84912622]
[1768602686233,0.95124113,3290.7,3289.6,2.84912622]
[1768602686531,0.95124113,3290.6,3289.6,2.84912622]
[1768602686731,1.13823685,3291.0,3289.6,3.83537307]
[1768602686932,0.95079444,3290.9,3289.6,3.83537307]
[1768602687240,0.95079444,3290.8,3289.6,3.83537307]
[1768602687427,0.95079444,3290.7,3289.7,2.71504602]
[1768602687628,0.95079444,3290.6,3289.7,2.71504602]
[1768602687828,1.13823685,3291.0,3289.7,2.71504602]
[1768602688036,0.95079319,3290.9,3289.7,2.71504602]
[1768602688237,0.95079319,3290.8,3289.7,2.71504602]
[1768602688535,0.95079319,3290.7,3289.7,2.71504602]
[1768602688737,0.95079319,3290.6,3289.7,2.71504602]
[1768602688936,1.13823685,3291.0,3289.7,2.71504602]
[1768602689136,0.95079214,3290.9,3289.7,2.71504602]
[1768602689339,0.95079214,3290.8,3289.7,2.71504602]
[1768602689529,0.95079214,3290.7,3289.7,2.71504602]
[1768602689828,0.95079214,3290.6,3289.7,2.71504602]
[1768602690025,1.13823685,3291.0,3289.7,2.71504602]
[1768602690229,0.95074615,3290.9,3289.7,2.71504602]
[1768602690429,0.95074615,3290.8,3289.7,2.71504602]
[1768602690630,0.95074615,3290.7,3289.7,2.71504602]
[1768602690840,0.95074615,3290.6,3289.7,2.71504602]
[1768602691039,1.13823685,3291.0,3289.7,2.71504602]
[1768602691242,0.95074632,3290.9,3289.7,2.71504602]
[1768602691441,0.95074632,3290.8,3289.7,2.71504602]
[1768602691642,0.95074632,3290.7,3289.7,2.71504602]
[1768602691844,0.95074632,3290.6,3289.7,2.71504602]
[1768602692148,1.13823685,3291.0,3289.7,2.71504602]
[1768602692333,0.95074342,3290.9,3289.7,2.71504602]
[1768602692628,0.95074342,3290.8,3289.7,2.71504602]
[1768602692833,0.95074342,3290.7,3289.7,2.71504602]
[1768602693033,0.95074342,3290.6,3289.7,2.71504602]
[1768602693245,1.13823685,3291.0,3289.7,2.71504602]
[1768602693447,0.95074322,3290.9,3289.7,2.71504602]
[1768602693743,0.95074322,3290.8,3289.7,2.71504602]
[1768602693943,0.95074322,3290.7,3289.7,2.71504602]
[1768602694144,0.95074322,3290.6,3289.7,2.71504602]
[1768602694335,1.13823685,3291.0,3289.7,2.71504602]
[1768602694535,0.95073729,3290.9,3289.7,2.71504602]
[1768602694738,0.95073729,3290.8,3289.7,2.71504602]
[1768602695033,0.95073729,3290.7,3289.7,2.71504602]
[1768602695233,0.95073729,3290.6,3289.7,2.71504602]
[1768602695441,1.13823685,3291.0,3289.7,3.70129287]
[1768602695640,0.95073657,3290.9,3289.7,3.70129287]
[1768602695942,0.95073657,3290.8,3289.7,3.70129287]
[1768602696141,0.95073657,3290.7,3289.7,3.70129287]
[1768602696343,1.13823685,3291.0,3289.7,3.70129287]
[1768602696344,0.95073657,3290.6,3289.7,3.70129287]
[1768602696647,1.13823685,3291.0,3289.7,3.70129287]
[1768602696944,0.95074007,3290.9,3289.7,3.70129287]
[1768602697133,0.95074007,3290.8,3289.7,3.70129287]
[1768602697338,0.95074007,3290.7,3289.7,3.70129287]
[1768602697543,0.95074007,3290.6,3289.7,3.70129287]
[1768602697745,1.13823685,3291.0,3289.7,3.70129287]
[1768602697950,0.95072264,3290.9,3289.7,3.70129287]
[1768602698137,0.95072264,3290.8,3289.7,3.70129287]
[1768602698432,0.95072264,3290.7,3289.7,3.70129287]
[1768602698736,0.95072264,3290.6,3289.7,3.70129287]
[1768602698938,1.13823685,3291.0,3289.7,3.70129287]
[1768602699132,0.95071124,3290.9,3289.7,3.70129287]
[1768602699337,0.95071124,3290.8,3289.7,3.70129287]
[1768602699548,0.95071124,3290.7,3289.7,3.70129287]
[1768602699747,0.95071124,3290.6,3289.7,3.70129287]
[1768602699939,1.13823685,3291.0,3289.7,3.70129287]
[1768602700140,0.9507031,3290.9,3289.7,3.70129287]
[1768602700347,0.9507031,3290.8,3289.7,3.70129287]
[1768602700547,0.9507031,3290.7,3289.7,3.70129287]
[1768602700745,0.9507031,3290.6,3289.7,3.70129287]
[1768602700944,1.13823685,3291.0,3289.7,3.70129287]
[1768602701153,0.95069841,3290.9,3289.7,3.70129287]
[1768602701352,1.13823685,3291.0,3289.7,3.70129287]
[1768602701353,0.95069841,3290.8,3289.7,3.70129287]
[1768602701648,0.95069841,3290.7,3289.7,3.70129287]
[1768602701847,0.95069841,3290.6,3289.7,3.70129287]
[1768602702047,1.13823685,3291.0,3289.7,3.70129287]
[1768602702244,0.95069206,3290.9,3289.8,2.86486479]
[1768602702446,0.00378189,3291.1,3290.4,2.86486479]
[1768602702649,0.00378189,3291.1,3290.4,2.86799783]
[1768602703648,0.15197,3291.5,3290.4,2.86799783]
[1768602704449,0.15512986,3291.5,3290.4,2.86799783]
[1768602705646,0.00315986,3291.5,3290.4,2.86799783]
[1768602708351,0.00315986,3291.5,3290.6,2.86486479]
[1768602708546,0.00315986,3291.5,3290.7,3.85111164]
[1768602709253,0.00315986,3291.5,3290.7,2.86486479]
[1768602709558,0.00315986,3291.5,3290.4,0.00313304]
[1768602710440,0.00315986,3291.5,3290.4,2.86799783]
[1768602710646,0.98624685,3290.7,3289.9,2.86486479]
[1768602710848,0.98624685,3290.9,3289.9,2.86486479]
[1768602711560,0.98624685,3290.9,3289.9,2.86762629]
[1768602717258,0.98624685,3291.0,3289.9,2.86762629]
[1768602729768,0.98624685,3290.8,3289.9,2.86762629]
[1768602731265,0.15198,3291.3,3289.9,2.86762629]
[1768602731460,0.94347305,3291.2,3289.9,2.86762629]
[1768602731660,0.94347305,3291.1,3289.9,2.86762629]
[1768602731856,0.94347305,3291.0,3289.9,2.86762629]
[1768602732064,1.13831171,3291.3,3289.9,2.86762629]
[1768602732266,0.94349234,3291.2,3289.9,2.86762629]
[1768602732466,0.94349234,3291.1,3289.9,2.86762629]
[1768602732766,0.94349234,3291.0,3289.9,0.0027615]
[1768602732961,1.13831171,3291.3,3289.9,0.0027615]
[1768602733161,0.94349164,3291.2,3289.9,0.0027615]
[1768602733377,0.94349164,3291.1,3289.9,0.0027615]
[1768602733570,0.94349164,3291.0,3289.9,0.0027615]
[1768602733764,1.13831171,3291.3,3289.9,0.0027615]
[1768602733970,0.94348178,3291.2,3289.9,0.0027615]
[1768602734267,0.94348178,3291.1,3289.9,0.0027615]
[1768602734468,0.94348178,3291.0,3289.9,0.0027615]
[1768602734770,1.13831171,3291.3,3289.9,0.0027615]
[1768602734968,0.94351202,3291.2,3289.9,0.0027615]
[1768602735172,0.94351202,3291.1,3289.9,0.0027615]
[1768602735362,0.94351202,3291.0,3289.9,0.0027615]
[1768602735562,1.13831171,3291.3,3289.9,0.0027615]
[1768602735761,0.94355625,3291.2,3289.9,0.0027615]
[1768602735970,0.94355625,3291.1,3289.9,0.0027615]
[1768602736270,0.94355625,3291.0,3289.9,0.0027615]
[1768602736457,1.13831171,3291.3,3289.9,0.0027615]
[1768602736658,0.94361737,3291.2,3289.9,0.0027615]
[1768602736958,0.94361737,3291.1,3289.9,0.0027615]
[1768602737163,0.94361737,3291.0,3289.9,0.0027615]
[1768602737367,1.13831171,3291.3,3289.9,0.0027615]
[1768602737663,0.94369182,3291.2,3289.9,0.0027615]
[1768602737863,0.94369182,3291.1,3289.9,0.0027615]
[1768602738062,0.94369182,3291.0,3289.9,0.0027615]
[1768602738264,1.13831171,3291.3,3289.9,0.0027615]
[1768602738461,0.94377464,3291.2,3289.9,0.0027615]
[1768602738665,0.94377464,3291.1,3289.9,0.0027615]
[1768602738873,0.94377464,3291.0,3289.9,0.0027615]
[1768602739171,0.94411769,3290.9,3289.9,0.0027615]
[1768602739374,0.15198,3291.2,3289.9,0.0027615]
[1768602739570,0.94413175,3291.1,3289.9,0.0027615]
[1768602739764,0.94413175,3291.0,3289.9,0.0027615]
[1768602739961,0.94413175,3290.9,3289.9,0.0027615]
[1768602740174,0.15198,3291.2,3289.9,0.0027615]
[1768602740376,0.94472588,3291.1,3289.9,0.0027615]
[1768602740567,0.94472588,3291.0,3289.9,0.0027615]
[1768602740762,0.94472588,3290.9,3289.9,0.0027615]
[1768602740968,0.94472588,3290.8,3289.9,0.0027615]
[1768602741274,0.94472588,3290.7,3289.9,0.0027615]
[1768602741475,0.15199,3291.1,3289.9,0.0027615]
[1768602741674,0.94476516,3291.0,3289.9,0.0027615]
[1768602741876,0.94476516,3290.9,3289.9,0.0027615]